[Event "*** Titled Tuesday Blitz"]
[Site "Chess.com"]
[Date "2020.12.01"]
[Round "4"]
[White "alexrustemov"]
[Black "PowerThinking2650"]
[Result "1/2-1/2"]
[WhiteElo "2631"]
[BlackElo "2454"]
[TimeControl "180+1"]
[EndTime "10:39:34 PST"]
[Termination "Game drawn - insufficient material"]

1. d4 {[%clk 0:03:00.4]} 1... Nf6 {[%clk 0:02:58]} 2. c4 {[%clk 0:02:59.7]} 2...
g6 {[%clk 0:02:57.9]} 3. Nf3 {[%clk 0:02:59.5]} 3... Bg7 {[%clk 0:02:58.3]} 4.
g3 {[%clk 0:03:00.2]} 4... O-O {[%clk 0:02:58.4]} 5. Bg2 {[%clk 0:03:00.8]} 5...
d6 {[%clk 0:02:59]} 6. Nc3 {[%clk 0:03:01.4]} 6... Nbd7 {[%clk 0:02:59]} 7. O-O
{[%clk 0:03:01.8]} 7... e5 {[%clk 0:02:59.7]} 8. e4 {[%clk 0:03:02.2]} 8... exd4
{[%clk 0:03:00.3]} 9. Nxd4 {[%clk 0:03:03]} 9... Re8 {[%clk 0:03:00.4]} 10. h3
{[%clk 0:03:03.5]} 10... Nc5 {[%clk 0:03:00.5]} 11. Re1 {[%clk 0:03:03.7]} 11...
Bd7 {[%clk 0:03:00.8]} 12. b3 {[%clk 0:03:01.6]} 12... Qc8 {[%clk 0:02:56.3]}
13. Kh2 {[%clk 0:03:00.4]} 13... Re5 {[%clk 0:02:56]} 14. g4 {[%clk 0:02:44]}
14... Re8 {[%clk 0:02:50.9]} 15. f3 {[%clk 0:02:41.4]} 15... h5 {[%clk
0:02:48.1]} 16. g5 {[%clk 0:02:39.3]} 16... Nh7 {[%clk 0:02:48.2]} 17. Be3
{[%clk 0:02:23.6]} 17... a5 {[%clk 0:02:42.4]} 18. Rc1 {[%clk 0:02:21.8]} 18...
Qd8 {[%clk 0:02:41.8]} 19. Qd2 {[%clk 0:02:20.5]} 19... h4 {[%clk 0:02:25.9]}
20. f4 {[%clk 0:02:16.8]} 20... f6 {[%clk 0:02:15.2]} 21. gxf6 {[%clk
0:02:08.8]} 21... Nxf6 {[%clk 0:02:16.1]} 22. Bf2 {[%clk 0:02:06.4]} 22... Nh5
{[%clk 0:02:12.8]} 23. Be3 {[%clk 0:01:26.5]} 23... Ng3 {[%clk 0:02:11.6]} 24.
Bf2 {[%clk 0:01:11.7]} 24... Nh5 {[%clk 0:02:10.9]} 25. Kg1 {[%clk 0:01:00]}
25... c6 {[%clk 0:01:55.7]} 26. Nf3 {[%clk 0:00:55.4]} 26... Qf6 {[%clk
0:01:46.8]} 27. Bxh4 {[%clk 0:00:36.7]} 27... Qxf4 {[%clk 0:01:45]} 28. Re3
{[%clk 0:00:10.5]} 28... Bh6 {[%clk 0:01:34.5]} 29. Bf2 {[%clk 0:00:09.3]} 29...
Ng3 {[%clk 0:01:22.4]} 30. Rce1 {[%clk 0:00:08.8]} 30... Rf8 {[%clk 0:00:57.7]}
31. e5 {[%clk 0:00:08.5]} 31... dxe5 {[%clk 0:00:48.7]} 32. Nxe5 {[%clk
0:00:09.4]} 32... Qxe5 {[%clk 0:00:39.1]} 33. Bxg3 {[%clk 0:00:06.4]} 33... Qxg3
{[%clk 0:00:26.9]} 34. Qd4 {[%clk 0:00:06.3]} 34... Bxe3+ {[%clk 0:00:19.5]} 35.
Rxe3 {[%clk 0:00:07.2]} 35... Qg5 {[%clk 0:00:19.9]} 36. h4 {[%clk 0:00:05.5]}
36... Qf6 {[%clk 0:00:20]} 37. Qxf6 {[%clk 0:00:03.8]} 37... Rxf6 {[%clk
0:00:20.9]} 38. Rg3 {[%clk 0:00:04.1]} 38... Kh7 {[%clk 0:00:20.6]} 39. Rg5
{[%clk 0:00:04.7]} 39... Nd3 {[%clk 0:00:19.1]} 40. Ne4 {[%clk 0:00:05.1]} 40...
Rf7 {[%clk 0:00:18.3]} 41. h5 {[%clk 0:00:05]} 41... Nf4 {[%clk 0:00:17.8]} 42.
hxg6+ {[%clk 0:00:04.5]} 42... Nxg6 {[%clk 0:00:18.7]} 43. Rg3 {[%clk
0:00:04.2]} 43... Raf8 {[%clk 0:00:17.3]} 44. Ng5+ {[%clk 0:00:04.6]} 44... Kg7
{[%clk 0:00:17.2]} 45. Nxf7 {[%clk 0:00:05.4]} 45... Rxf7 {[%clk 0:00:18.1]} 46.
Be4 {[%clk 0:00:05.8]} 46... Rf6 {[%clk 0:00:18]} 47. Rg5 {[%clk 0:00:05.6]}
47... Be6 {[%clk 0:00:17.4]} 48. Rxa5 {[%clk 0:00:04.8]} 48... Nf4 {[%clk
0:00:17.6]} 49. Ra7 {[%clk 0:00:04.8]} 49... Rf7 {[%clk 0:00:18]} 50. Kh2 {[%clk
0:00:04.4]} 50... Kf6 {[%clk 0:00:17.7]} 51. Kg3 {[%clk 0:00:04.7]} 51... Ke5
{[%clk 0:00:17.7]} 52. Bf3 {[%clk 0:00:05.2]} 52... Rg7+ {[%clk 0:00:17.4]} 53.
Kf2 {[%clk 0:00:05.8]} 53... Nd3+ {[%clk 0:00:17]} 54. Ke3 {[%clk 0:00:06.2]}
54... Nc5 {[%clk 0:00:16.5]} 55. b4 {[%clk 0:00:05.6]} 55... Nd7 {[%clk
0:00:14.3]} 56. b5 {[%clk 0:00:06]} 56... Bxc4 {[%clk 0:00:13.5]} 57. bxc6
{[%clk 0:00:05.6]} 57... bxc6 {[%clk 0:00:14.1]} 58. Bxc6 {[%clk 0:00:06.2]}
58... Rg3+ {[%clk 0:00:14.2]} 59. Kf2 {[%clk 0:00:06.7]} 59... Rc3 {[%clk
0:00:12.8]} 60. Bxd7 {[%clk 0:00:06.7]} 60... Rc2+ {[%clk 0:00:12.7]} 61. Ke3
{[%clk 0:00:07.3]} 61... Rxa2 {[%clk 0:00:13]} 62. Rxa2 {[%clk 0:00:06.9]} 62...
Bxa2 {[%clk 0:00:13.9]} 1/2-1/2

[Event "*** Titled Tuesday Blitz"]
[Site "Chess.com"]
[Date "2020.12.01"]
[Round "4"]
[White "sara_khm"]
[Black "Stosk"]
[Result "0-1"]
[WhiteElo "2586"]
[BlackElo "2408"]
[TimeControl "180+1"]
[EndTime "10:39:35 PST"]
[Termination "Stosk won by resignation"]

1. d4 {[%clk 0:03:00.9]} 1... d5 {[%clk 0:02:59]} 2. c4 {[%clk 0:03:00.2]} 2...
e6 {[%clk 0:02:59]} 3. Nc3 {[%clk 0:02:59]} 3... Nf6 {[%clk 0:02:58.8]} 4. cxd5
{[%clk 0:02:57.4]} 4... exd5 {[%clk 0:02:58.9]} 5. Bg5 {[%clk 0:02:57.8]} 5...
Be7 {[%clk 0:02:58.6]} 6. e3 {[%clk 0:02:57.4]} 6... O-O {[%clk 0:02:57]} 7. Bd3
{[%clk 0:02:57.6]} 7... c6 {[%clk 0:02:54.2]} 8. Qc2 {[%clk 0:02:57.3]} 8...
Nbd7 {[%clk 0:02:52.8]} 9. Nge2 {[%clk 0:02:57.3]} 9... Re8 {[%clk 0:02:50.7]}
10. O-O {[%clk 0:02:56.7]} 10... Nf8 {[%clk 0:02:48.9]} 11. f3 {[%clk
0:02:55.3]} 11... h6 {[%clk 0:02:41.3]} 12. Bh4 {[%clk 0:02:53]} 12... Ne6
{[%clk 0:02:31.6]} 13. Rad1 {[%clk 0:02:50.3]} 13... c5 {[%clk 0:02:08.1]} 14.
dxc5 {[%clk 0:02:45.9]} 14... g5 {[%clk 0:01:58.9]} 15. Bf2 {[%clk 0:02:43.8]}
15... Bxc5 {[%clk 0:01:56.6]} 16. Bf5 {[%clk 0:02:26.5]} 16... Ng7 {[%clk
0:01:45.9]} 17. Bxc8 {[%clk 0:02:19.6]} 17... Rxc8 {[%clk 0:01:46.8]} 18. Qd3
{[%clk 0:02:05.4]} 18... Qe7 {[%clk 0:01:27.5]} 19. Nd4 {[%clk 0:01:45.9]} 19...
Bxd4 {[%clk 0:01:14]} 20. exd4 {[%clk 0:01:42.3]} 20... Ne6 {[%clk 0:01:08.5]}
21. Bg3 {[%clk 0:01:37.4]} 21... Qb4 {[%clk 0:01:03.1]} 22. Rd2 {[%clk
0:01:32.2]} 22... Qa5 {[%clk 0:00:50.3]} 23. Qf5 {[%clk 0:01:28.5]} 23... Nh5
{[%clk 0:00:38.3]} 24. Be5 {[%clk 0:01:11.5]} 24... Rxc3 {[%clk 0:00:24.9]} 25.
bxc3 {[%clk 0:01:09.3]} 25... Qxc3 {[%clk 0:00:25.8]} 26. Rfd1 {[%clk
0:00:35.8]} 26... Nhf4 {[%clk 0:00:18]} 27. Qf6 {[%clk 0:00:25.6]} 27... Qe3+
{[%clk 0:00:18.1]} 28. Kf1 {[%clk 0:00:23.6]} 28... Ng6 {[%clk 0:00:18.4]} 29.
Re2 {[%clk 0:00:22.6]} 29... Qc3 {[%clk 0:00:17.4]} 30. Bg3 {[%clk 0:00:20.5]}
30... Qc4 {[%clk 0:00:11.9]} 31. Kf2 {[%clk 0:00:18.5]} 31... Qc6 {[%clk
0:00:09.8]} 32. h4 {[%clk 0:00:17.4]} 32... gxh4 {[%clk 0:00:08.9]} 33. Bxh4
{[%clk 0:00:16.1]} 33... Nef4 {[%clk 0:00:09.2]} 34. Rxe8+ {[%clk 0:00:15.6]}
34... Qxe8 {[%clk 0:00:09.6]} 35. Rd2 {[%clk 0:00:15.9]} 35... Qa4 {[%clk
0:00:05]} 36. Qd8+ {[%clk 0:00:15.8]} 36... Kh7 {[%clk 0:00:05.2]} 37. Bf6
{[%clk 0:00:15.7]} 37... h5 {[%clk 0:00:03.8]} 38. Qc7 {[%clk 0:00:13.9]} 38...
Qe8 {[%clk 0:00:03.3]} 39. Qxb7 {[%clk 0:00:12.5]} 39... Qe6 {[%clk 0:00:03.7]}
40. Qxa7 {[%clk 0:00:11.9]} 40... Qxf6 {[%clk 0:00:03.6]} 41. Qa3 {[%clk
0:00:11.4]} 41... Qf5 {[%clk 0:00:03.6]} 42. Qe3 {[%clk 0:00:11.9]} 42... h4
{[%clk 0:00:04]} 43. a4 {[%clk 0:00:11.3]} 43... h3 {[%clk 0:00:03.5]} 44. gxh3
{[%clk 0:00:11.4]} 44... Nxh3+ {[%clk 0:00:04.4]} 45. Ke1 {[%clk 0:00:11.7]}
45... Nhf4 {[%clk 0:00:04.2]} 46. a5 {[%clk 0:00:11.1]} 46... Qb1+ {[%clk
0:00:04.5]} 47. Kf2 {[%clk 0:00:10.5]} 47... Qb4 {[%clk 0:00:03.8]} 48. a6
{[%clk 0:00:10]} 48... Qa5 {[%clk 0:00:04.1]} 49. Rc2 {[%clk 0:00:07.2]} 49...
Qxa6 {[%clk 0:00:04]} 50. Rc7 {[%clk 0:00:07.4]} 50... Qf6 {[%clk 0:00:04.4]}
51. Rd7 {[%clk 0:00:06.8]} 51... Ne6 {[%clk 0:00:04.7]} 52. Rxd5 {[%clk
0:00:06.2]} 52... Ngf4 {[%clk 0:00:05.3]} 53. Re5 {[%clk 0:00:05.4]} 53... Qg6
{[%clk 0:00:04.8]} 54. Ke1 {[%clk 0:00:04.1]} 54... Ng2+ {[%clk 0:00:04.4]} 0-1

[Event "*** Titled Tuesday Blitz"]
[Site "Chess.com"]
[Date "2020.12.01"]
[Round "4"]
[White "Atousa1"]
[Black "PavelShkapenko"]
[Result "0-1"]
[WhiteElo "2484"]
[BlackElo "2701"]
[TimeControl "180+1"]
[EndTime "10:39:36 PST"]
[Termination "PavelShkapenko won by resignation"]

1. e4 {[%clk 0:01:27.7]} 1... e5 {[%clk 0:02:57.1]} 2. Nf3 {[%clk 0:01:26.2]}
2... Nc6 {[%clk 0:02:56.9]} 3. Bb5 {[%clk 0:01:26]} 3... Bc5 {[%clk 0:02:56.9]}
4. c3 {[%clk 0:01:23.4]} 4... f5 {[%clk 0:02:55.1]} 5. d4 {[%clk 0:01:20.4]}
5... fxe4 {[%clk 0:02:54.1]} 6. Nxe5 {[%clk 0:01:20.3]} 6... Nxe5 {[%clk
0:02:50.5]} 7. dxe5 {[%clk 0:01:21.2]} 7... Qh4 {[%clk 0:02:49.3]} 8. O-O {[%clk
0:01:20.5]} 8... Ne7 {[%clk 0:02:31.8]} 9. Nd2 {[%clk 0:01:20.6]} 9... c6 {[%clk
0:01:57.1]} 10. Bc4 {[%clk 0:01:19.2]} 10... e3 {[%clk 0:01:57.1]} 11. fxe3
{[%clk 0:01:18.9]} 11... Bxe3+ {[%clk 0:01:57]} 12. Kh1 {[%clk 0:01:19.6]} 12...
Rf8 {[%clk 0:01:44]} 13. Nf3 {[%clk 0:01:17.8]} 13... Qxc4 {[%clk 0:01:41]} 14.
Bxe3 {[%clk 0:01:17.4]} 14... b6 {[%clk 0:01:27.7]} 15. Bg5 {[%clk 0:01:14.7]}
15... Ng6 {[%clk 0:01:19.2]} 16. Re1 {[%clk 0:01:14.1]} 16... Kf7 {[%clk
0:01:03.4]} 17. e6+ {[%clk 0:00:55.7]} 17... dxe6 {[%clk 0:01:02.9]} 18. Nd4
{[%clk 0:00:41]} 18... Kg8 {[%clk 0:00:56.5]} 19. Qh5 {[%clk 0:00:41]} 19... c5
{[%clk 0:00:51.6]} 20. b3 {[%clk 0:00:38]} 20... Qd5 {[%clk 0:00:50.8]} 21. Nf3
{[%clk 0:00:37]} 21... Bb7 {[%clk 0:00:49]} 22. Rad1 {[%clk 0:00:35.9]} 22...
Qf5 {[%clk 0:00:34.3]} 23. Nh4 {[%clk 0:00:35.8]} 23... Qf2 {[%clk 0:00:28.7]}
24. Qg4 {[%clk 0:00:29.6]} 24... Nxh4 {[%clk 0:00:24.5]} 25. Bxh4 {[%clk
0:00:29.5]} 25... Qf5 {[%clk 0:00:24.3]} 26. Qxf5 {[%clk 0:00:28.3]} 26... exf5
{[%clk 0:00:24.4]} 27. Rd7 {[%clk 0:00:25.2]} 27... Bc6 {[%clk 0:00:24.4]} 28.
Rc7 {[%clk 0:00:25.4]} 28... Bd5 {[%clk 0:00:23]} 29. c4 {[%clk 0:00:19.7]}
29... Be4 {[%clk 0:00:22.6]} 30. Rd1 {[%clk 0:00:18.3]} 30... Rf7 {[%clk
0:00:22.5]} 31. Rxf7 {[%clk 0:00:15.7]} 31... Kxf7 {[%clk 0:00:22.8]} 32. Rd7+
{[%clk 0:00:16.6]} 32... Kg6 {[%clk 0:00:23.1]} 33. Be1 {[%clk 0:00:14.4]} 33...
h5 {[%clk 0:00:20.6]} 34. Bc3 {[%clk 0:00:14.5]} 34... Rg8 {[%clk 0:00:18.8]}
35. Kg1 {[%clk 0:00:14.8]} 35... a5 {[%clk 0:00:17.7]} 36. Kf2 {[%clk
0:00:15.1]} 36... Kg5 {[%clk 0:00:17.4]} 37. g3 {[%clk 0:00:15.2]} 37... g6
{[%clk 0:00:17.3]} 38. h3 {[%clk 0:00:15.6]} 38... h4 {[%clk 0:00:17.2]} 39. Rd6
{[%clk 0:00:15.5]} 39... hxg3+ {[%clk 0:00:16.8]} 40. Kxg3 {[%clk 0:00:16.4]}
40... Kh5 {[%clk 0:00:16.2]} 41. Bd2 {[%clk 0:00:16]} 41... g5 {[%clk
0:00:16.1]} 42. Rxb6 {[%clk 0:00:15.1]} 42... f4+ {[%clk 0:00:16]} 43. Kf2
{[%clk 0:00:15.6]} 43... Rd8 {[%clk 0:00:15.8]} 44. Bc3 {[%clk 0:00:15.7]} 44...
Rd3 {[%clk 0:00:15.4]} 45. Bg7 {[%clk 0:00:15.6]} 45... Rxh3 {[%clk 0:00:15.6]}
46. Rh6+ {[%clk 0:00:13.6]} 46... Kg4 {[%clk 0:00:15.8]} 47. Rxh3 {[%clk
0:00:13.7]} 47... Kxh3 {[%clk 0:00:16.2]} 48. Bf8 {[%clk 0:00:14.3]} 48... g4
{[%clk 0:00:16.2]} 49. Bxc5 {[%clk 0:00:14.8]} 49... g3+ {[%clk 0:00:16.7]} 50.
Kg1 {[%clk 0:00:15.4]} 50... Bb1 {[%clk 0:00:16.7]} 51. a3 {[%clk 0:00:15.2]}
51... Ba2 {[%clk 0:00:16.8]} 52. b4 {[%clk 0:00:14.3]} 52... axb4 {[%clk
0:00:16.8]} 53. axb4 {[%clk 0:00:14.4]} 53... Bxc4 {[%clk 0:00:16.9]} 54. Bd6
{[%clk 0:00:14.1]} 54... Kg4 {[%clk 0:00:15.5]} 55. Bc5 {[%clk 0:00:14]} 55...
Bb5 {[%clk 0:00:15.7]} 56. Bb6 {[%clk 0:00:14.3]} 56... Kf5 {[%clk 0:00:14.4]}
57. Kg2 {[%clk 0:00:12.6]} 57... Bc6+ {[%clk 0:00:13.9]} 58. Kf1 {[%clk
0:00:12.4]} 58... Ke4 {[%clk 0:00:13.7]} 59. Bc7 {[%clk 0:00:11.4]} 59... Kf3
{[%clk 0:00:13.7]} 60. Bd6 {[%clk 0:00:10.6]} 60... Bb5+ {[%clk 0:00:13.7]} 61.
Kg1 {[%clk 0:00:10.7]} 61... Kg4 {[%clk 0:00:13.7]} 62. Bc7 {[%clk 0:00:11]}
62... f3 {[%clk 0:00:13.9]} 63. Bb6 {[%clk 0:00:11.3]} 63... Kf5 {[%clk
0:00:14]} 64. Bc7 {[%clk 0:00:09.4]} 64... f2+ {[%clk 0:00:13.2]} 65. Kg2 {[%clk
0:00:08.4]} 65... f1=Q+ {[%clk 0:00:13.1]} 0-1

[Event "*** Titled Tuesday Blitz"]
[Site "Chess.com"]
[Date "2020.12.01"]
[Round "4"]
[White "ZenBull"]
[Black "sbouchet"]
[Result "1-0"]
[WhiteElo "2181"]
[BlackElo "2380"]
[TimeControl "180+1"]
[EndTime "10:39:36 PST"]
[Termination "ZenBull won by resignation"]

1. Nf3 {[%clk 0:03:00.6]} 1... c5 {[%clk 0:02:59.2]} 2. c4 {[%clk 0:02:59.7]}
2... g6 {[%clk 0:02:58.3]} 3. e4 {[%clk 0:02:57.9]} 3... Bg7 {[%clk 0:02:58.3]}
4. d4 {[%clk 0:02:58.2]} 4... cxd4 {[%clk 0:02:57.2]} 5. Nxd4 {[%clk 0:02:59.1]}
5... Nc6 {[%clk 0:02:57.3]} 6. Be3 {[%clk 0:02:59.1]} 6... Nf6 {[%clk
0:02:56.5]} 7. Nc3 {[%clk 0:02:58.7]} 7... O-O {[%clk 0:02:56.9]} 8. Be2 {[%clk
0:02:58.5]} 8... d6 {[%clk 0:02:57.4]} 9. O-O {[%clk 0:02:58.2]} 9... Bd7 {[%clk
0:02:58]} 10. Nc2 {[%clk 0:02:56.7]} 10... h5 {[%clk 0:02:53.9]} 11. Rc1 {[%clk
0:02:47.3]} 11... Rc8 {[%clk 0:02:51]} 12. Qd2 {[%clk 0:02:39.5]} 12... b6
{[%clk 0:02:33.7]} 13. Na3 {[%clk 0:02:30.4]} 13... Nb4 {[%clk 0:02:20.2]} 14.
f3 {[%clk 0:02:23.1]} 14... Be6 {[%clk 0:02:13.2]} 15. b3 {[%clk 0:02:18]} 15...
Nc6 {[%clk 0:02:00.8]} 16. Nd5 {[%clk 0:02:11.6]} 16... h4 {[%clk 0:01:55.5]}
17. Nb5 {[%clk 0:02:03.2]} 17... h3 {[%clk 0:01:51]} 18. g3 {[%clk 0:02:02.4]}
18... Qd7 {[%clk 0:01:50.3]} 19. Nbc3 {[%clk 0:01:56.4]} 19... Rfe8 {[%clk
0:01:39.7]} 20. Nf4 {[%clk 0:01:55.8]} 20... Ne5 {[%clk 0:01:31.4]} 21. Ncd5
{[%clk 0:01:51.9]} 21... Qb7 {[%clk 0:01:22.4]} 22. Nxe6 {[%clk 0:01:48.5]}
22... fxe6 {[%clk 0:01:23.3]} 23. Nf4 {[%clk 0:01:48]} 23... Qd7 {[%clk
0:01:20]} 24. Nxh3 {[%clk 0:01:47.2]} 24... Kf7 {[%clk 0:01:17.1]} 25. Nf4
{[%clk 0:01:44.2]} 25... Rh8 {[%clk 0:01:16.3]} 26. Rf2 {[%clk 0:01:40.9]} 26...
Bh6 {[%clk 0:00:59.6]} 27. Nd3 {[%clk 0:01:39.6]} 27... Nxd3 {[%clk 0:00:50.4]}
28. Bxd3 {[%clk 0:01:29.9]} 28... Bxe3 {[%clk 0:00:49.4]} 29. Qxe3 {[%clk
0:01:30.8]} 29... e5 {[%clk 0:00:49.8]} 30. Rfc2 {[%clk 0:01:25.8]} 30... Kg7
{[%clk 0:00:48.8]} 31. Bf1 {[%clk 0:01:25.3]} 31... Ne8 {[%clk 0:00:36.1]} 32.
Rd1 {[%clk 0:01:23.2]} 32... Nc7 {[%clk 0:00:35.1]} 33. Rcd2 {[%clk 0:01:22.8]}
33... Ne6 {[%clk 0:00:32.8]} 34. f4 {[%clk 0:01:15.4]} 34... exf4 {[%clk
0:00:30]} 35. gxf4 {[%clk 0:01:16.3]} 35... Rcf8 {[%clk 0:00:27.2]} 36. Bh3
{[%clk 0:01:12.3]} 36... Rh4 {[%clk 0:00:17.2]} 37. Rf1 {[%clk 0:01:07.8]} 37...
Rfh8 {[%clk 0:00:16.2]} 38. Bxe6 {[%clk 0:01:06.1]} 38... Qxe6 {[%clk
0:00:15.9]} 39. Rg2 {[%clk 0:01:03]} 39... Kf8 {[%clk 0:00:12.2]} 40. f5 {[%clk
0:00:57.9]} 40... gxf5 {[%clk 0:00:11.9]} 41. Rxf5+ {[%clk 0:00:56.9]} 41... Ke8
{[%clk 0:00:12.5]} 42. Rf4 {[%clk 0:00:55.1]} 42... Kd7 {[%clk 0:00:10]} 43. Qf3
{[%clk 0:00:42.9]} 43... Qe5 {[%clk 0:00:09.8]} 44. Rxh4 {[%clk 0:00:40.6]}
44... Rxh4 {[%clk 0:00:10.5]} 45. Qf5+ {[%clk 0:00:39.1]} 45... Qxf5 {[%clk
0:00:10.9]} 46. exf5 {[%clk 0:00:39.5]} 46... Rf4 {[%clk 0:00:11.3]} 47. Rf2
{[%clk 0:00:39.7]} 47... Rh4 {[%clk 0:00:11.5]} 48. Kg2 {[%clk 0:00:39.1]} 48...
Ke8 {[%clk 0:00:11.8]} 49. Kg3 {[%clk 0:00:39]} 49... Rh7 {[%clk 0:00:11.9]} 50.
h4 {[%clk 0:00:36.2]} 50... Kf7 {[%clk 0:00:12]} 51. Kg4 {[%clk 0:00:35.2]}
51... Kf6 {[%clk 0:00:12.3]} 52. Re2 {[%clk 0:00:34.1]} 52... Rg7+ {[%clk
0:00:12.1]} 53. Kf4 {[%clk 0:00:34]} 53... Rh7 {[%clk 0:00:12.6]} 54. Re6+
{[%clk 0:00:34]} 54... Kf7 {[%clk 0:00:13.2]} 55. Kg5 {[%clk 0:00:33.4]} 55...
Rg7+ {[%clk 0:00:13.1]} 56. Rg6 {[%clk 0:00:33.5]} 56... Rh7 {[%clk 0:00:12.9]}
57. h5 {[%clk 0:00:33.9]} 57... a5 {[%clk 0:00:10.8]} 58. h6 {[%clk 0:00:29]}
58... Kf8 {[%clk 0:00:09.6]} 59. Re6 {[%clk 0:00:25.8]} 59... Kf7 {[%clk
0:00:09.8]} 60. Re2 {[%clk 0:00:22.9]} 60... Rh8 {[%clk 0:00:09.8]} 61. Re6
{[%clk 0:00:21.7]} 61... Rg8+ {[%clk 0:00:09.3]} 62. Rg6 {[%clk 0:00:21.7]}
62... Rh8 {[%clk 0:00:09.9]} 63. Kh5 {[%clk 0:00:21.3]} 63... Rh7 {[%clk
0:00:08.9]} 64. Kg5 {[%clk 0:00:20.5]} 64... Rh8 {[%clk 0:00:09.2]} 65. Rg7+
{[%clk 0:00:20.5]} 65... Kf8 {[%clk 0:00:09.5]} 66. Kg6 {[%clk 0:00:20.6]} 66...
e5 {[%clk 0:00:06.8]} 67. fxe6 {[%clk 0:00:20.2]} 1-0

[Event "*** Titled Tuesday Blitz"]
[Site "Chess.com"]
[Date "2020.12.01"]
[Round "4"]
[White "annacramling"]
[Black "JoliyRoger"]
[Result "0-1"]
[WhiteElo "2124"]
[BlackElo "2384"]
[TimeControl "180+1"]
[EndTime "10:39:37 PST"]
[Termination "JoliyRoger won by resignation"]

1. d4 {[%clk 0:03:00.9]} 1... Nf6 {[%clk 0:02:57.9]} 2. c4 {[%clk 0:03:00.9]}
2... e6 {[%clk 0:02:57.9]} 3. Nc3 {[%clk 0:03:01.4]} 3... Bb4 {[%clk 0:02:58.5]}
4. Qc2 {[%clk 0:03:02.1]} 4... b6 {[%clk 0:02:57.7]} 5. e4 {[%clk 0:03:01.1]}
5... Bb7 {[%clk 0:02:55.7]} 6. d5 {[%clk 0:02:44.8]} 6... Bxc3+ {[%clk
0:02:51.9]} 7. bxc3 {[%clk 0:02:41]} 7... e5 {[%clk 0:02:47.2]} 8. Nf3 {[%clk
0:02:33.8]} 8... d6 {[%clk 0:02:47.1]} 9. Bg5 {[%clk 0:02:30.1]} 9... Nbd7
{[%clk 0:02:46.9]} 10. Be2 {[%clk 0:02:29.7]} 10... h6 {[%clk 0:02:47.1]} 11.
Bh4 {[%clk 0:02:29.7]} 11... Nf8 {[%clk 0:02:47.4]} 12. Rb1 {[%clk 0:02:26.4]}
12... Bc8 {[%clk 0:02:47.1]} 13. O-O {[%clk 0:02:14.8]} 13... Ng6 {[%clk
0:02:47.6]} 14. Bg3 {[%clk 0:02:14.4]} 14... O-O {[%clk 0:02:48.2]} 15. Nd2
{[%clk 0:02:07.6]} 15... Bd7 {[%clk 0:02:45.9]} 16. c5 {[%clk 0:01:41.7]} 16...
bxc5 {[%clk 0:02:40.8]} 17. Nc4 {[%clk 0:01:41.4]} 17... a5 {[%clk 0:02:22.4]}
18. f4 {[%clk 0:01:17.6]} 18... exf4 {[%clk 0:02:16.7]} 19. Bxf4 {[%clk
0:01:18.5]} 19... Nxf4 {[%clk 0:02:02.8]} 20. Rxf4 {[%clk 0:01:19.4]} 20... Be8
{[%clk 0:01:38.8]} 21. Qd2 {[%clk 0:01:09.6]} 21... Nd7 {[%clk 0:01:33.6]} 22.
Ne3 {[%clk 0:00:53.7]} 22... Ne5 {[%clk 0:01:30]} 23. Nf5 {[%clk 0:00:52.8]}
23... Bd7 {[%clk 0:01:23.4]} 24. Rbf1 {[%clk 0:00:34.2]} 24... Bxf5 {[%clk
0:01:22.5]} 25. Rxf5 {[%clk 0:00:35.1]} 25... f6 {[%clk 0:01:21.7]} 26. c4
{[%clk 0:00:28.9]} 26... a4 {[%clk 0:01:20.4]} 27. a3 {[%clk 0:00:28.2]} 27...
Rb8 {[%clk 0:01:15.4]} 28. Qa5 {[%clk 0:00:20]} 28... Ra8 {[%clk 0:01:09.6]} 29.
Qc3 {[%clk 0:00:17.3]} 29... Qd7 {[%clk 0:01:09.1]} 30. h3 {[%clk 0:00:13.6]}
30... Rab8 {[%clk 0:01:07.3]} 31. Qc2 {[%clk 0:00:10.2]} 31... Rb3 {[%clk
0:01:04.1]} 32. Bg4 {[%clk 0:00:05.1]} 32... Nxg4 {[%clk 0:01:02.1]} 33. hxg4
{[%clk 0:00:06]} 33... Re8 {[%clk 0:00:55.9]} 34. R5f3 {[%clk 0:00:05.9]} 34...
Reb8 {[%clk 0:00:51.7]} 35. Rxb3 {[%clk 0:00:05.4]} 35... axb3 {[%clk
0:00:51.7]} 36. Qb2 {[%clk 0:00:03.8]} 36... Qxg4 {[%clk 0:00:49.5]} 37. Re1
{[%clk 0:00:03.6]} 37... Qg5 {[%clk 0:00:47.8]} 38. a4 {[%clk 0:00:02.8]} 38...
Qe5 {[%clk 0:00:46.6]} 39. Re2 {[%clk 0:00:02.4]} 39... Rb4 {[%clk 0:00:18.5]}
40. a5 {[%clk 0:00:02.5]} 40... Ra4 {[%clk 0:00:13.6]} 41. a6 {[%clk 0:00:01.6]}
41... Ra1+ {[%clk 0:00:12.6]} 42. Kf2 {[%clk 0:00:02.1]} 42... Rxa6 {[%clk
0:00:12.5]} 43. Qxb3 {[%clk 0:00:02.1]} 43... Rb6 {[%clk 0:00:12.3]} 44. Qe3
{[%clk 0:00:02.2]} 44... Kh7 {[%clk 0:00:12.4]} 45. Qf3 {[%clk 0:00:02.6]} 45...
Rb2 {[%clk 0:00:12.3]} 46. Qf5+ {[%clk 0:00:02.1]} 46... Qxf5+ {[%clk 0:00:12]}
47. exf5 {[%clk 0:00:03]} 47... Rxe2+ {[%clk 0:00:12.3]} 48. Kxe2 {[%clk
0:00:03.9]} 48... g6 {[%clk 0:00:12.9]} 49. fxg6+ {[%clk 0:00:04.2]} 49... Kxg6
{[%clk 0:00:13]} 50. Ke3 {[%clk 0:00:05.1]} 50... Kf5 {[%clk 0:00:13.4]} 51. g3
{[%clk 0:00:05.2]} 51... h5 {[%clk 0:00:13.9]} 52. Kf3 {[%clk 0:00:05.4]} 52...
Ke5 {[%clk 0:00:13.8]} 53. Ke3 {[%clk 0:00:05.9]} 53... f5 {[%clk 0:00:14.1]}
54. Kf3 {[%clk 0:00:06.1]} 54... f4 {[%clk 0:00:12.9]} 55. gxf4+ {[%clk
0:00:06.2]} 55... Kf5 {[%clk 0:00:13.6]} 56. Kg3 {[%clk 0:00:03.9]} 56... h4+
{[%clk 0:00:14.2]} 57. Kxh4 {[%clk 0:00:04.2]} 57... Kxf4 {[%clk 0:00:14.8]} 58.
Kh5 {[%clk 0:00:04.9]} 58... Ke5 {[%clk 0:00:15.4]} 59. Kg6 {[%clk 0:00:05.7]}
59... Kd4 {[%clk 0:00:16.2]} 60. Kf6 {[%clk 0:00:05.9]} 60... Kxc4 {[%clk
0:00:16.8]} 61. Ke6 {[%clk 0:00:06.5]} 61... Kb5 {[%clk 0:00:17.1]} 62. Kd7
{[%clk 0:00:06.4]} 62... Kb6 {[%clk 0:00:17.7]} 63. Ke6 {[%clk 0:00:06.3]} 63...
c4 {[%clk 0:00:18.6]} 64. Kf5 {[%clk 0:00:06.4]} 64... c3 {[%clk 0:00:19.5]} 65.
Ke4 {[%clk 0:00:07]} 65... c2 {[%clk 0:00:20.2]} 66. Kd3 {[%clk 0:00:07.6]}
66... c1=Q {[%clk 0:00:21.1]} 0-1